Cogmind - Beta 13 @@@ ROGUE MODE // 2024.04.02 @ 23:52:02 Player: SovietPaperclip Result: Destroyed by D-53 Grenadier with Mini Grenade Launcher Performance ------------- Evolutions (0) 0 Regions Visited (4) 800 Robots Destroyed (32) 160 Value Destroyed (563) 563 Prototype IDs (2) 40 Alien Tech Used (0) 0 Bonus (0) 0 TOTAL SCORE: 1563 Bonus ------- None Cogmind --------- Core Integrity 0/250 Matter 103/300 Energy 99/100 System Corruption 15% Temperature Cool (0) Movement Core (50) Location -9/Mines Parts ------- > --- POWER (1) -------- (None) > --- PROPULSION (2) --- (None) > --- UTILITY (2) ------ (None) > --- WEAPON (2) ------- Heavy Hammer > --- INVENTORY (5) ---- Large Storage Unit Hacking Suite Grenade Launcher Grenade Launcher Grenade Launcher Peak State ------------ > --- POWER ------------ Light Ion Engine > --- PROPULSION ------- Light Treads Light Treads > --- UTILITY ---------- Small Storage Unit Targeting Computer > --- WEAPON ----------- Light Assault Rifle Light Cannon > --- INVENTORY -------- Light Ion Engine Light Nuclear Core Light Treads Light Treads Hacking Suite Light Assault Rifle [Rating: 8] Favorites ----------- Power Light Ion Engine Engine Light Ion Engine Power Core Light Nuclear Core Propulsion Light Treads Treads Light Treads Utility Large Storage Unit Storage Large Storage Unit Processor Targeting Computer Protection Light Armor Plating Weapon Light Assault Rifle Ballistic Gun Light Assault Rifle Ballistic Cannon Light Cannon Launcher Grenade Launcher Impact Weapon Heavy Hammer Build | -11 -10 -10 -10 -9 ------- Run | Yrd Mat Min Exi Min Slots Evolved . | . . . . . Power . | . . . . . Propulsion . | . . . . . Utility . | . . . . . Weapon . | . . . . . Parts Attached 20 | 6 8 2 3 1 Power 3 | 1 1 . 1 . Engine 2 | 1 1 . . . Core 1 | . . . 1 . Reactor . | . . . . . Propulsion 4 | 2 1 1 . . Treads 4 | 2 1 1 . . Leg . | . . . . . Wheel . | . . . . . Hover . | . . . . . Flight . | . . . . . Utility 4 | 1 3 . . . Device . | . . . . . Storage 2 | 1 1 . . . Processor 1 | . 1 . . . Hackware . | . . . . . Protection 1 | . 1 . . . Artifact . | . . . . . Weapon 9 | 2 3 1 2 1 Energy Gun . | . . . . . Energy Cannon . | . . . . . Ballistic Gun 6 | 2 2 . 2 . Ballistic Cannon 1 | . 1 . . . Launcher 1 | . . 1 . . Special Weapon . | . . . . . Impact Weapon 1 | . . . . 1 Slashing Weapon . | . . . . . Piercing Weapon . | . . . . . Special Melee Weapon . | . . . . . Unidentified Prototypes . | . . . . . Parts Lost 10 | . 2 5 . 3 Power 3 | . 1 1 . 1 Propulsion 2 | . . 1 . 1 Utility 1 | . . 1 . . Weapon 4 | . 1 2 . 1 Highest Loss Streak 3 | . 1 3 . 3 To Critical Strikes . | . . . . . Average Slot Usage (%) 86 | . 99 90 60 62 Engine 9 | . 13 13 . . Core 3 | . . . 10 11 Treads 22 | . 27 23 14 11 Storage 13 | . 14 14 14 12 Processor 3 | . 7 . . . Protection 5 | . 5 10 . . Ballistic Gun 15 | . 19 . 20 23 Ballistic Cannon 7 | . 8 13 . . Launcher 3 | . . 13 . . Naked Turns . | . . . . . Heaviest Build 32 | 10 31 32 28 28 Greatest Support 40 | 40 40 40 20 20 Greatest Overweight (x) 1 | . 1 1 1 1 Average Overweight (x) . | . . . . . Largest Inventory Capacity 15 | 8 15 15 15 15 Average Capacity 13 | 6 11 15 15 13 Most Carried 11 | 3 10 11 10 8 Average Carried 7 | 1 5 10 7 7 Final Capacity 15 | 8 15 15 15 5 Final Carried 10 | 1 10 10 7 5 Class Distribution -------------------- 100% | Mutant Dominant Class ---------------- Mutant | -10/Materials Mutant | -10/Mines Mutant | -10/Exiles Mutant | -9/Mines Resources | -11 -10 -10 -10 -9 ----------- Run | Yrd Mat Min Exi Min Matter Collected 988 | 168 360 272 77 111 Remotely . | . . . . . Salvage Created 637 | . 478 82 . 77 Parts 60 | . 38 11 . 11 Haulers Intercepted 2 | . 2 . . . Recyclers Shooed . | . . . . . Parts Field Recycled . | . . . . . Retrieved Matter . | . . . . . Parts Self-Destructed . | . . . . . Prevented . | . . . . . Kills | -11 -10 -10 -10 -9 ------- Run | Yrd Mat Min Exi Min Combat Hostiles Destroyed 27 | . 13 9 . 5 Melee 1 | . . . . 1 Guns 13 | . 9 . . 4 Cannons 8 | . 4 4 . . AOE 5 | . . 5 . . Classes Destroyed 7 | . 5 2 . . Hauler 2 | . 2 . . . Recycler 1 | . . 1 . . Operator 1 | . 1 . . . Watcher 3 | . 3 . . . Swarmer 16 | . 6 6 . 4 Grunt 9 | . 7 2 . . Assembled 2 | . . 1 . 1 Best Kill Streak 4 | . 3 3 . 4 Combat Bots Only 4 | . 3 3 . 4 Max Kills in Single Turn 2 | . 1 2 . 2 Gunslinging 1 | . . . . 1 Exploded 2 | . . 2 . . Melee 1 | . . . . 1 Uniques/NPCs Destroyed . | . . . . . Combat | -11 -10 -10 -10 -9 -------- Run | Yrd Mat Min Exi Min Hostile Shots Fired 167 | . 63 55 . 49 Missed 44 | . 17 16 . 11 Damage Taken 1442 | . 487 568 . 387 Core 259 | . 69 102 . 88 Absorbed by Shields . | . . . . . Core Remaining (%) 100 | 100 . . . . Volleys Fired 147 | . 71 61 . 15 Largest 2 | . 2 2 . 2 Hottest 65 | . 55 65 . 40 Shots Fired 238 | . 142 69 . 27 Gun 137 | . 110 . . 27 Cannon 83 | . 32 51 . . Launcher 18 | . . 18 . . Special . | . . . . . Kinetic 220 | . 142 51 . 27 Thermal . | . . . . . Explosive 18 | . . 18 . . Electromagnetic . | . . . . . Robot Hit Streak 16 | . 16 11 . 3 Robot Miss Streak 6 | . 6 2 . 3 Penetration Max . | . . . . . Secondary Targets 3 | . 1 . . 2 Max Gunslinging Chain 1 | . 1 . . 1 Shots Hit Robots 124 | . 84 26 . 14 Core Hits 56 | . 36 12 . 8 Critical Kills . | . . . . . Critical Parts Destroyed . | . . . . . Critical Strikes 4 | . . 4 . . Blast 4 | . . 4 . . Melee Attacks 1 | . . . . 1 Impact 1 | . . . . 1 Slashing . | . . . . . Piercing . | . . . . . Sneak Attacks . | . . . . . Combat Hostiles . | . . . . . Follow-up Attacks . | . . . . . Damage Inflicted 2039 | . 878 982 . 179 Guns 684 | . 543 . . 141 Cannons 707 | . 335 372 . . Explosions 610 | . . 610 . . Melee 38 | . . . . 38 Ramming . | . . . . . Kinetic 1391 | . 878 372 . 141 Thermal . | . . . . . Explosive 610 | . . 610 . . Electromagnetic . | . . . . . Impact 38 | . . . . 38 Slashing . | . . . . . Piercing . | . . . . . Highest Corruption 15 | . 2 2 2 15 Average Corruption 2 | . 1 2 2 4 Corruption Purged . | . . . . . Corruption Blocked . | . . . . . Effects 27 | . 6 10 6 5 Message Errors 6 | . 1 2 1 2 Matter Fused 9 | . 3 2 3 1 Heat Flow Errors 4 | . . 2 1 1 Energy Discharges 3 | . . 2 1 . Parts Rejected 3 | . 1 1 . 1 Data Loss (minor) 1 | . 1 . . . Misfires 1 | . . 1 . . Overload Shots . | . . . . . Overflow Damage 36 | . 5 31 . . Projectiles 12 | . 5 7 . . Explosions 24 | . . 24 . . Melee . | . . . . . Knockbacks 10 | . 5 5 . . Impact . | . . . . . Kinetic 10 | . 5 5 . . Secondary . | . . . . . Self-Inflicted Damage 135 | . . 135 . . Shots 5 | . . 5 . . Rammed . | . . . . . Targets Rammed . | . . . . . Kicked . | . . . . . Crushed . | . . . . . Highest Temperature 250 | . 91 250 105 85 Average Temperature 38 | . 18 74 56 9 Received Heat Transfer 354 | . 180 174 . . Siege Activations . | . . . . . Robots Corrupted . | . . . . . Combat Hostiles . | . . . . . Parts Fried . | . . . . . Impact Corruptions . | . . . . . Robots Melted . | . . . . . Combat Hostiles . | . . . . . Parts Melted . | . . . . . Heat Transferred . | . . . . . Parts Sabotaged . | . . . . . Parts Stolen . | . . . . . Parts Stripped . | . . . . . Power Chain Reactions . | . . . . . Alert | -11 -10 -10 -10 -9 ------- Run | Yrd Mat Min Exi Min Peak Influence 199 | . 157 199 . 105 Initial . | . . . . . Average 72 | . 72 73 . 82 Maximum Alert Level . | . . . . . Low Security (%) 100 | 100 100 100 . 100 Level 1 . | . . . . . Level 2 . | . . . . . Level 3 . | . . . . . Level 4 . | . . . . . Level 5 . | . . . . . High Security . | . . . . . Max Security . | . . . . . Squads Dispatched 2 | . 2 . . . Investigation 2 | . 2 . . . Extermination . | . . . . . Reinforcement . | . . . . . Assault . | . . . . . Garrison . | . . . . . Intercept . | . . . . . Searches Triggered . | . . . . . Construction Impeded . | . . . . . Haulers Reinforced . | . . . . . Active Scanning Responses . | . . . . . Cargo Convoy Interrupts . | . . . . . Stealth | -11 -10 -10 -10 -9 --------- Run | Yrd Mat Min Exi Min Distress Signals 1 | . 1 . . . Communications Jammed . | . . . . . Distress Signals . | . . . . . Times Spotted 41 | . 26 9 . 6 Peak Tracking Total 4 | . 3 3 . 4 Tactical Retreats 1 | . 1 . . . Traps | -11 -10 -10 -10 -9 ------- Run | Yrd Mat Min Exi Min Traps Triggered 4 | . 4 . . . Indirectly . | . . . . . Trap Hack Attempts . | . . . . . Triggered . | . . . . . Disarmed 4 | . 4 . . . Reprogrammed . | . . . . . Reused . | . . . . . Traps Extracted . | . . . . . Installed . | . . . . . Triggered . | . . . . . Machines | -11 -10 -10 -10 -9 ---------- Run | Yrd Mat Min Exi Min Machines Disabled 1 | . . 1 . . Max in Single Turn 1 | . . 1 . . Machines Repaired . | . . . . . Machines Dismantled . | . . . . . Machines Sabotaged . | . . . . . Overloaded Fab Kills . | . . . . . Hacking | -11 -10 -10 -10 -9 --------- Run | Yrd Mat Min Exi Min Machines Accessed 4 | . 4 . . . Terminals 4 | . 4 . . . Fabricators . | . . . . . Repair Stations . | . . . . . Recycling Units . | . . . . . Scanalyzers . | . . . . . Garrison Access . | . . . . . Total Hacks 8 | . 8 . . . Successful 5 | . 5 . . . Failed 3 | . 3 . . . Catastrophic . | . . . . . Database Lockouts . | . . . . . Manual . | . . . . . Terminals 8 | . 8 . . . Fabricators . | . . . . . Repair Stations . | . . . . . Recycling Units . | . . . . . Scanalyzers . | . . . . . Garrison Access . | . . . . . Terminal Hacks 5 | . 5 . . . Prototype ID Bank 1 | . 1 . . . Disarm Traps 1 | . 1 . . . Hauler Manifests 1 | . 1 . . . Zone Layout 2 | . 2 . . . Fabricator Hacks . | . . . . . Repair Station Hacks . | . . . . . Recycling Unit Hacks . | . . . . . Scanalyzer . | . . . . . Garrison Access Hacks . | . . . . . Unauthorized Hacks . | . . . . . Terminals . | . . . . . Fabricators . | . . . . . Repair Stations . | . . . . . Recycling Units . | . . . . . Scanalyzers . | . . . . . Garrison Access . | . . . . . Data Cores Recovered 1 | . 1 . . . Used . | . . . . . Hacking Detections 2 | . 2 . . . Full Trace Events 2 | . 2 . . . Feedback Events . | . . . . . Feedback Blocked . | . . . . . Robot Schematics Acquired . | . . . . . Robots Built . | . . . . . Authchips . | . . . . . Time . | . . . . . Total Robot Build Rating . | . . . . . Part Schematics Acquired . | . . . . . Parts Built . | . . . . . Authchips . | . . . . . Time . | . . . . . Total Part Build Rating . | . . . . . Parts Repaired . | . . . . . Time . | . . . . . Parts Recycled . | . . . . . Recycled Matter . | . . . . . Retrieved Matter . | . . . . . Retrieved Components . | . . . . . Parts Scanalyzed . | . . . . . Part Schematics Acquired . | . . . . . Parts Damaged . | . . . . . Bothacking | -11 -10 -10 -10 -9 ------------ Run | Yrd Mat Min Exi Min Used RIF Installer . | . . . . . Robots Hacked . | . . . . . Non-combat . | . . . . . Combat . | . . . . . Robot Hacks Applied . | . . . . . Relay Couplers Released . | . . . . . Fabnet Peak Effective % . | . . . . . Robots Rewired . | . . . . . Allies Hacked . | . . . . . Hacks Repelled . | . . . . . Allies | -11 -10 -10 -10 -9 -------- Run | Yrd Mat Min Exi Min Total Allies 5 | . . . . 5 Largest Group 5 | . . . . 5 Highest-Rated Group 85 | . . . . 85 Highest-Rated Ally 31 | . . . . 31 Total Orders . | . . . . . Ally Attacks 4 | . . . . 4 Total Damage 65 | . . . . 65 Kills . | . . . . . Allies Corrupted . | . . . . . Allies Melted . | . . . . . Intel | -11 -10 -10 -10 -9 ------- Run | Yrd Mat Min Exi Min Robot Analysis Total . | . . . . . Derelict Logs Recovered 3 | . . 2 . 1 Drone Launches . | . . . . . Drone Recoveries . | . . . . . Exploration | -11 -10 -10 -10 -9 ------------- Run | Yrd Mat Min Exi Min Turns Passed 3047 | 68 1332 804 451 392 Spaces Moved 1502 | 45 672 383 210 192 Core 84 | 14 . . . 70 Treads 1418 | 31 672 383 210 122 Legs . | . . . . . Wheels . | . . . . . Hover . | . . . . . Flight . | . . . . . Fastest Speed 50 | 50 160 160 160 50 Average Speed 171 | 125 160 175 213 170 Slowest Speed 240 | 160 240 240 240 240 Overloaded Moves . | . . . . . Propulsion Burnouts . | . . . . . Robots Hopped . | . . . . . Cave-ins Triggered . | . . . . . Exploration Rate (%) 55 | 3 96 73 60 43 Regions Visited 4 Branch Regions 3 Pre-discovered Areas 1 | . . 1 . . Known Exits Taken . | . . . . . Unknown Exits Taken 4 | 1 1 1 1 . Scrap Searched 2 | . . 1 . 1 Spaces Dug . | . . . . . Terrain Destroyed 125 | . . 125 . . Melee . | . . . . . Projectile . | . . . . . AOE 125 | . . 125 . . Terrain Rammed . | . . . . . Walls Destroyed . | . . . . . Machines Disabled . | . . . . . Actions | -11 -10 -10 -10 -9 --------- Run | Yrd Mat Min Exi Min Total 1757 | 57 806 447 214 233 Wait 57 | . 37 1 . 19 Move 1498 | 44 671 382 209 192 Hop . | . . . . . Pick Up 26 | 7 16 1 1 1 Fast Attach . | . . . . . Attach 16 | 6 5 1 3 1 Detach 1 | . . . . 1 Swap 4 | . 3 1 . . Drop 7 | . 3 . 1 3 Fire 147 | . 71 61 . 15 Melee 1 | . . . . 1 Ram . | . . . . . Kick . | . . . . . Crush . | . . . . . Escape Stasis . | . . . . . Rewire . | . . . . . Trap . | . . . . . Miscellaneous . | . . . . . Route ------- -11/Scrapyard -10/Materials (discovered 5 exits: [*Mat x3] / [*Min x2]) -10/Mines (discovered 2 exits: [*Mat] / [*Exi]) -10/Exiles -9/Mines History --------- Turn | Location | Event 8 | -11/Scrapyard | Discovered new exit (range 15) 69 | -11/Scrapyard | Entered Materials 300 | -10/Materials | Build established: Mutant 441 | -10/Materials | Discovered new exit (range 14) 603 | -10/Materials | Discovered new exit (range 16) 715 | -10/Materials | Discovered new exit (range 15) 905 | -10/Materials | Discovered new exit (range 16) 1087 | -10/Materials | Discovered new exit (range 12) 1401 | -10/Materials | Entered Mines 1557 | -10/Mines | Learned Materials stockpile data 1660 | -10/Mines | Excavation squad dispatched 1660 | -10/Mines | A large section of the Mines collapsed 1837 | -10/Mines | Deemed a non-threat by the Exiles lab entrance 1839 | -10/Mines | Discovered new exit (range 5) 2007 | -10/Mines | Core integrity fell below 50% 2165 | -10/Mines | Discovered new exit (range 15) 2205 | -10/Mines | Entered Exiles 2205 | -10/Exiles | Found Exiles lab abandoned 2213 | -10/Exiles | Lost 3 parts (1p2w) 2637 | -10/Exiles | Discovered new exit (range 10) 2656 | -10/Exiles | Entered Mines 2666 | -9/Mines | Core integrity fell below 20% 2803 | -9/Mines | Found a hidden stash of uninstalled traps 2824 | -9/Mines | Learned location of 1 exit from Materials 2906 | -9/Mines | Assembled infested the area 2911 | -9/Mines | Assisted by a Guerilla fighting off Assembled 2989 | -9/Mines | System corruption reached 10% 3016 | -9/Mines | Assisted by bots powering up and referring to "LRC-V3" 3019 | -9/Mines | Lost 3 parts (1p1n1w) 3048 | -9/Mines | Destroyed by D-53 Grenadier with Mini Grenade Launcher Last Messages --------------- 02994_ Dropped Hcp. Matter Pod. 02994_ Dropped Huge Storage Unit. 02996_ Acquired 8 matter. 02998_ A pair of derelicts emerge from the shadows: "We're, um, lost. You wouldn't happen to know the way out of here, would you?" 03012_ System corrupted: Heat flow error (+110). 03016_ Trooper 2a: "Hello LRC-V3. What is your command?" 03016_ Mercenary 2a: "Hello LRC-V3. What is your command?" 03016_ Trooper 2b: "Hello LRC-V3. What is your command?" 03020_ Acquired 8 matter. 03025_ The unstable cave ceiling collapses. 03034_ CUW7O Z#N0::0EB6Q> K6SAU 03034_ The unstable cave ceiling collapses. 03042_ U-05 Engineer builds a Wall. 03046_ Mercenary 2a destroyed. 03046_ Trooper 2a destroyed. Map ----- +----------------------------------------------------+ | ??????????###???????????????????????????? | | ?????????## #??????????????????????????? | | ????????## ??????????????????????????? | | ???????## #?#####???????????????????? | | ???????# ## ##???#####??????????? | | ???????# ##### ##?????????? | | ???????# ## ##????????? | | ??????## #????????? | | ??????# #????????? | | ??????# #????????? | | ???????# #????????? | | ???????# ##???????? | | ####???## ## ##??????? | | #????## ### ##?????? | | ## #?????## ## #?????? | | ?# #??????# ## #?????? | | ## #??????# #### ### #?????? | | ######?## ### #?#####?# #?????? | | ## ##### ### #?# #?# #?????? | | & ### #?## ##????? | | # & & ## #??## #????? | | # & ### ##!#### ##??## #????? | | # ##?# ##!#### ##??## ##????? | | # ##??# ##[ ##??### #?????? | | # ##???# ##!##### ## #????# #?????? | | ## ##????# ## ##??######@ #????# #?????? | | ?####??#### ##??????# #????# #?????? | | ??????## #?????## #????# #?????? | | ??????# #?????# ##???# #?????? | | ?????## #?????# z #???# #?????? | | ????## ##?????# g #??# #?????? | | ???## ####??????## ?# #?????? | | ???# ##??????????# %= ## ##????? | | ???# ####???????????## g%* #????? | | ???# ##???????????????# d #????? | | ???# ##????????????????## # #????? | | ???#####???????????????????## #???? | | ???????????????????????????# # ###???? | | ?????????????????????????? ## # #???? | | ???????????????????????? ? #???? | | ???????????????????????" ? #???? | | ????????????????????? ? ##???? | | ???????????????????? %### ?? ##????? | | ??????????????????? !#??# ??# #?????? | | ??????????????????? ??? ???##?????? | | ???????????????????? ???? #??????????? | | ????????????????????# ?????#???????????? | | ????????????????????????????????????????? | | ????????????????????????????????????????? | | ????????????????????????????????????????? | +----------------------------------------------------+ Best States ------------- Heat Dissipation 25 Energy Generation 14 Energy Capacity 160 Matter Stores 300 Matter Capacity 300 Sight Range 16 Terrain Scan Density 10 Armor Coverage 150 Evasion (%) 50 Targeting Accuracy 5 Recoil Reduction 2 Item Schematics ----------------- None Robot Schematics ------------------ None Fabricated ------------ Nothing Alien Tech Used ----------------- None Achievements -------------- None Challenges ------------ None Game ------ Seed MultinovaRainbowSpecial Manual? 0 Play Time 00:19:04 Cumulative 25.9 hours Start 2024.04.02 @ 23:35:35 End 2024.04.02 @ 23:52:02 Sessions 1 Manual Loads 0 Difficulty Rogue Special Mode None Game No. 36 Rogue 36 Adventurer 0 Explorer 0 Win Type - Total 1 Types 1/0/0/0/0/0/0/0/0 Lore% 18 Gallery% 21 Achievement% 23 Wizard Run 0 Options --------- Layout 1 ASCII 0 Keyboard 0 Movement Mouse Keybinds 0 Fullscreen 2 Font 32/Smallcaps Map View 50x40 Zoom Use 0% Tactical HUD 1 Map Filters NONE Filters NONE Steam 1 RUN: 3f30932a-2080-4de8-b05b-0d9265a6e05f